fUSD/lending_fUSD_20240420
["ID","MTS","AMOUNT","RATE_DAILY","PERIOD"]
[323040169,1713611455142,-500.0,0.00015342,2]
[323040170,1713611455155,-500.0,0.00015342,2]
[323040171,1713611455165,-887.05,0.00015342,2]
[323040172,1713611455174,-500.0,0.00015342,2]
[323040173,1713611455183,-500.0,0.00015342,2]
[323040174,1713611455193,-500.0,0.00015342,2]
[323040175,1713611455201,-505.39,0.00015342,2]
[323040176,1713611455210,-500.0,0.00015342,2]
[323040177,1713611455219,-500.0,0.00015342,2]
[323040178,1713611455228,-518.38,0.00015342,2]
[323040179,1713611455238,-500.0,0.00015342,2]
[323040180,1713611455248,-2281.12,0.00015342,2]
[323040181,1713611455258,-750.33,0.00015342,2]
[323040182,1713611455268,-500.0,0.00015342,2]
[323040183,1713611455277,-500.0,0.00015342,2]
[323040184,1713611455286,-500.0,0.00015342,2]
[323040185,1713611455295,-151.783869,0.00015342,2]
[323040186,1713611455305,-500.0,0.00015342,2]
[323040187,1713611455314,-1725.14,0.00015342,2]
[323040188,1713611455323,-500.0,0.00015342,2]
[323040189,1713611455332,-500.0,0.00015342,2]
[323040190,1713611455341,-1228.09,0.00015342,2]
[323040191,1713611455351,-2766.69,0.00015342,2]
[323040192,1713611455360,-500.0,0.00015342,2]
[323040193,1713611455369,-151.0,0.00015342,2]
[323040194,1713611455378,-537.9,0.00015342,2]
[323040195,1713611455386,-500.0,0.00015342,2]
[323040196,1713611455396,-500.0,0.00015342,2]
[323040197,1713611455404,-1435.56,0.00015342,2]
[323040198,1713611455413,-500.0,0.00015342,2]
[323040199,1713611455423,-156.19651,0.00015342,2]
[323040200,1713611455432,-155.312991,0.00015342,2]
[323040201,1713611455441,-537.22,0.00015342,2]
[323040202,1713611455450,-500.0,0.00015342,2]
[323040203,1713611455460,-500.0,0.00015342,2]
[323040204,1713611455469,-500.0,0.00015342,2]
[323040205,1713611455478,-500.0,0.00015342,2]
[323040206,1713611455488,-1835.58,0.00015342,2]
[323040207,1713611455497,-151.0,0.00015342,2]
[323040208,1713611455506,-500.0,0.00015342,2]
[323040209,1713611455515,-500.0,0.00015342,2]
[323040210,1713611455525,-1038.04,0.00015342,2]
[323040211,1713611455534,-1367.13,0.00015342,2]
[323040212,1713611455543,-500.0,0.00015342,2]
[323040213,1713611455552,-805.23,0.00015342,2]
[323040214,1713611455561,-551.36,0.00015342,2]
[323040215,1713611455571,-500.0,0.00015342,2]
[323040216,1713611455580,-500.0,0.00015342,2]
[323040217,1713611455589,-500.0,0.00015342,2]
[323040218,1713611455598,-640.83,0.00015342,2]
[323040219,1713611455607,-500.0,0.00015342,2]
[323040220,1713611455616,-500.0,0.00015342,2]
[323040221,1713611455625,-1065.12,0.00015342,2]
[323040222,1713611455634,-500.0,0.00015342,2]
[323040223,1713611455643,-500.0,0.00015342,2]
[323040224,1713611455653,-500.0,0.00015342,2]
[323040225,1713611455662,-500.0,0.00015342,2]
[323040226,1713611455671,-500.0,0.00015342,2]
[323040227,1713611455680,-674.7,0.00015342,2]
[323040228,1713611455689,-500.0,0.00015342,2]
[323040229,1713611455698,-780.32,0.00015342,2]
[323040230,1713611455707,-1788.84,0.00015342,2]
[323040231,1713611455716,-2265.42,0.00015342,2]
[323040232,1713611455725,-500.0,0.00015342,2]
[323040233,1713611455733,-545.89,0.00015342,2]
[323040234,1713611455742,-151.0,0.00015342,2]
[323040235,1713611455751,-635.76,0.00015342,2]
[323040236,1713611455760,-1363.18,0.00015342,2]
[323040237,1713611455769,-500.0,0.00015342,2]
[323040238,1713611455778,-2331.803592,0.00015342,2]
[323040239,1713611455787,-500.0,0.00015342,2]
[323040240,1713611455796,-1429.82,0.00015342,2]
[323040241,1713611455805,-1522.89,0.00015342,2]
[323040242,1713611455814,-500.0,0.00015342,2]
[323040243,1713611455823,-151.0,0.00015342,2]
[323040244,1713611455832,-2331.803592,0.00015342,2]
[323040245,1713611455841,-822.42,0.00015342,2]
[323040246,1713611455850,-500.0,0.00015342,2]
[323040247,1713611455859,-500.0,0.00015342,2]
[323040248,1713611455868,-500.0,0.00015342,2]
[323040249,1713611455876,-500.0,0.00015342,2]
[323040250,1713611455885,-500.0,0.00015342,2]
[323040251,1713611455895,-500.0,0.00015342,2]
[323040252,1713611455904,-672.7,0.00015342,2]
[323040253,1713611455913,-500.0,0.00015342,2]
[323040254,1713611455922,-500.0,0.00015342,2]
[323040255,1713611455936,-500.0,0.00015342,2]
[323040256,1713611455948,-344.71,0.00015342,2]
[323040257,1713611455961,-1665.19,0.00015342,2]
[323040258,1713611455974,-500.0,0.00015342,2]
[323040259,1713611455985,-156.979972,0.00015342,2]
[323040260,1713611455995,-151.0,0.00015342,2]
[323040261,1713611456007,-500.0,0.00015342,2]
[323040262,1713611456018,-500.0,0.00015342,2]
[323040263,1713611456030,-500.0,0.00015342,2]
[323040264,1713611456043,-151.0,0.00015342,2]
[323040265,1713611456056,-500.0,0.00015342,2]
[323040266,1713611456068,-151.0,0.00015342,2]
[323040267,1713611456080,-583.96,0.00015342,2]
[323040268,1713611456090,-500.0,0.00015342,2]
[323040269,1713611456101,-500.0,0.00015342,2]
[323040270,1713611456113,-500.0,0.00015342,2]
[323040271,1713611456124,-500.0,0.00015342,2]
[323040272,1713611456136,-151.0,0.00015342,2]
[323040273,1713611456149,-1616.68,0.00015342,2]
[323040274,1713611456160,-500.0,0.00015342,2]
[323040275,1713611456173,-500.0,0.00015342,2]
[323040276,1713611456184,-500.0,0.00015342,2]
[323040277,1713611456194,-500.0,0.00015342,2]
[323040278,1713611456204,-500.0,0.00015342,2]
[323040279,1713611456218,-2039.27,0.00015342,2]
[323040280,1713611456229,-678.8,0.00015342,2]
[323040281,1713611456242,-173.856897,0.00015342,2]
[323040282,1713611456256,-151.0,0.00015342,2]
[323040283,1713611456270,-500.0,0.00015342,2]
[323040284,1713611456281,-500.0,0.00015342,2]
[323040285,1713611456292,-500.0,0.00015342,2]
[323040286,1713611456305,-500.0,0.00015342,2]
[323040287,1713611456317,-500.0,0.00015342,2]
[323040288,1713611456328,-173.856897,0.00015342,2]
[323040289,1713611456341,-500.0,0.00015342,2]
[323040290,1713611456354,-500.0,0.00015342,2]
[323040291,1713611456368,-500.0,0.00015342,2]
[323040292,1713611456381,-500.0,0.00015342,2]
[323040293,1713611456393,-1653.62,0.00015342,2]
[323040294,1713611456406,-500.0,0.00015342,2]
[323040295,1713611456416,-153.50786131,0.00015342,2]
[323040296,1713611456427,-500.0,0.00015342,2]
[323040297,1713611456437,-500.0,0.00015342,2]
[323040298,1713611456448,-151.702854,0.00015342,2]
[323040299,1713611456461,-500.0,0.00015342,2]
[323040300,1713611456473,-151.0,0.00015342,2]
[323040301,1713611456484,-500.0,0.00015342,2]
[323040302,1713611456498,-500.0,0.00015342,2]
[323040303,1713611456510,-1134.35,0.00015342,2]
[323040304,1713611456520,-279.73803663,0.00015342,2]
[323040305,1713611456531,-500.0,0.00015342,2]
[323040306,1713611456541,-500.0,0.00015342,2]
[323040307,1713611456553,-151.0,0.00015342,2]
[323040308,1713611456565,-500.0,0.00015342,2]
[323040309,1713611456577,-529.02,0.00015342,2]
[323040310,1713611456587,-500.0,0.00015342,2]
[323040311,1713611456599,-500.0,0.00015342,2]
[323040312,1713611456609,-500.0,0.00015342,2]
[323040313,1713611456620,-500.0,0.00015342,2]
[323040314,1713611456631,-1014.28,0.00015342,2]
[323040315,1713611456642,-500.0,0.00015342,2]
[323040316,1713611456655,-2608.96,0.00015342,2]
[323040317,1713611456666,-500.0,0.00015342,2]
[323040318,1713611456678,-500.0,0.00015342,2]
[323040319,1713611456688,-500.0,0.00015342,2]
[323040320,1713611456700,-500.0,0.00015342,2]
[323040321,1713611456710,-889.44,0.00015342,2]
[323040322,1713611456721,-1280.01,0.00015342,2]
[323040323,1713611456732,-620.78,0.00015342,2]
[323040324,1713611456743,-500.0,0.00015342,2]
[323040325,1713611456754,-500.0,0.00015342,2]
[323040326,1713611456765,-500.0,0.00015342,2]
[323040327,1713611456776,-646.39,0.00015342,2]
[323040328,1713611456787,-1449.62,0.00015342,2]
[323040329,1713611456798,-9687.36,0.00015342,2]
[323040330,1713611456810,-500.0,0.00015342,2]
[323040331,1713611456823,-745.84,0.00015342,2]
[323040332,1713611456834,-500.0,0.00015342,2]
[323040333,1713611456845,-500.0,0.00015342,2]
[323040334,1713611456856,-151.0,0.00015342,2]
[323040335,1713611456866,-3748.05,0.00015342,2]
[323040336,1713611456877,-656.03,0.00015342,2]
[323040337,1713611456888,-1022.9,0.00015342,2]
[323040338,1713611456898,-1359.38,0.00015342,2]
[323040339,1713611456909,-500.0,0.00015342,2]
[323040340,1713611456919,-500.0,0.00015342,2]
[323040341,1713611456930,-500.0,0.00015342,2]
[323040342,1713611456941,-2102.62,0.00015342,2]
[323040343,1713611456952,-523.4,0.00015342,2]
[323040344,1713611456965,-167.164818,0.00015342,2]
[323040345,1713611456976,-500.0,0.00015342,2]
[323040346,1713611456987,-1544.99,0.00015342,2]
[323040347,1713611456997,-500.0,0.00015342,2]
[323040348,1713611457008,-500.0,0.00015342,2]
[323040349,1713611457019,-500.0,0.00015342,2]
[323040350,1713611457030,-1118.9,0.00015342,2]
[323040351,1713611457041,-500.0,0.00015342,2]
[323040352,1713611457052,-500.0,0.00015342,2]
[323040353,1713611457063,-621.49,0.00015342,2]
[323040354,1713611457074,-500.0,0.00015342,2]
[323040355,1713611457085,-500.0,0.00015342,2]
[323040356,1713611457096,-5131.73,0.00015342,2]
[323040357,1713611457107,-4456.85,0.00015342,2]
[323040358,1713611457117,-500.0,0.00015342,2]
[323040359,1713611457128,-611.35,0.00015342,2]
[323040360,1713611457138,-500.0,0.00015342,2]
[323040361,1713611457148,-167.164818,0.00015342,2]
[323040362,1713611457159,-27081.06,0.00015342,2]
[323040363,1713611457171,-886.69,0.00015342,2]
[323040364,1713611457182,-3077.56,0.00015342,2]
[323040365,1713611457192,-500.0,0.00015342,2]
[323040366,1713611457204,-500.0,0.00015342,2]
[323040367,1713611457216,-3128.44,0.00015342,2]
[323040368,1713611457230,-203.455649,0.00015342,2]
[323040369,1713611457243,-500.0,0.00015342,2]
[323040370,1713611457255,-151.0,0.00015342,2]
[323040371,1713611457268,-2738.9,0.00015342,2]
[323040372,1713611457278,-1189.37,0.00015342,2]
[323040373,1713611457290,-203.455649,0.00015342,2]
[323040374,1713611457302,-500.0,0.00015342,2]
[323040375,1713611457314,-2283.46,0.00015342,2]
[323040376,1713611457326,-1656.25,0.00015342,2]
[323040377,1713611457344,-500.0,0.00015342,2]
[323040378,1713611457355,-664.94,0.00015342,2]
[323040379,1713611457367,-500.0,0.00015342,2]
[323040380,1713611457379,-430.53019888,0.00015342,2]
[323040381,1713611457390,-500.0,0.00015342,2]
[323040382,1713611457402,-500.0,0.00015342,2]
[323040383,1713611457414,-1474.84,0.00015342,2]
[323040384,1713611457425,-1743.5,0.00015342,2]
[323040385,1713611457436,-1235.94,0.00015342,2]
[323040386,1713611457447,-12684.05,0.00015342,2]
[323040387,1713611457458,-500.0,0.00015342,2]
[323040388,1713611457469,-3144.69,0.00015342,2]
[323040389,1713611457480,-587.21,0.00015342,2]
[323040390,1713611457492,-500.0,0.00015342,2]
[323040391,1713611457503,-500.0,0.00015342,2]
[323040392,1713611457515,-500.0,0.00015342,2]
[323040393,1713611457526,-1178.55,0.00015342,2]
[323040394,1713611457538,-2700.56,0.00015342,2]
[323040395,1713611457550,-500.0,0.00015342,2]
[323040396,1713611457561,-500.0,0.00015342,2]
[323040397,1713611457573,-500.0,0.00015342,2]
[323040398,1713611457585,-500.0,0.00015342,2]
[323040399,1713611457599,-4052.79,0.00015342,2]
[323040400,1713611457614,-1443.78,0.00015342,2]
[323040401,1713611457627,-5741.21,0.00015342,2]
[323040402,1713611457639,-500.0,0.00015342,2]
[323040403,1713611457652,-500.0,0.00015342,2]
[323040404,1713611457664,-1575.77,0.00015342,2]
[323040405,1713611457676,-1011.59,0.00015342,2]
[323040406,1713611457687,-592.36,0.00015342,2]
[323040407,1713611457699,-500.0,0.00015342,2]
[323040408,1713611457710,-500.0,0.00015342,2]
[323040409,1713611457722,-500.0,0.00015342,2]
[323040410,1713611457733,-2908.87,0.00015342,2]
[323040411,1713611457744,-719.71,0.00015342,2]
[323040412,1713611457756,-500.0,0.00015342,2]
[323040413,1713611457767,-500.0,0.00015342,2]
[323040414,1713611457777,-500.0,0.00015342,2]
[323040415,1713611457788,-500.0,0.00015342,2]
[323040416,1713611457800,-500.0,0.00015342,2]
[323040417,1713611457811,-500.0,0.00015342,2]
[323040418,1713611457823,-239.664402,0.00015342,2]
[323040419,1713611457836,-500.0,0.00015342,2]
[323040420,1713611457847,-500.0,0.00015342,2]
[323040421,1713611457859,-500.0,0.00015342,2]
[323040422,1713611457870,-2445.79,0.00015342,2]
[323040423,1713611457880,-861.43,0.00015342,2]
[323040424,1713611457891,-500.0,0.00015342,2]
[323040425,1713611457904,-177.440691,0.00015342,2]
[323040426,1713611457915,-1065.36,0.00015342,2]
[323040427,1713611457928,-1016.81,0.00015342,2]
[323040428,1713611457941,-500.0,0.00015342,2]
[323040429,1713611457955,-500.0,0.00015342,2]
[323040430,1713611457966,-21321.96,0.00015342,2]
[323040431,1713611457977,-500.0,0.00015342,2]
[323040432,1713611457988,-500.0,0.00015342,2]
[323040433,1713611457999,-177.440691,0.00015342,2]
[323040434,1713611458009,-2157.32,0.00015342,2]
[323040435,1713611458020,-500.0,0.00015342,2]
[323040436,1713611458031,-151.0,0.00015342,2]
[323040437,1713611458042,-500.0,0.00015342,2]
[323040438,1713611458054,-18305.92,0.00015342,2]
[323040439,1713611458065,-532.63,0.00015342,2]
[323040440,1713611458075,-1390.82,0.00015342,2]
[323040441,1713611458087,-500.0,0.00015342,2]
[323040442,1713611458098,-5154.48,0.00015342,2]
[323040443,1713611458108,-766.49,0.00015342,2]
[323040444,1713611458119,-526.19,0.00015342,2]
[323040445,1713611458130,-155.25412637,0.00015342,2]
[323040446,1713611458140,-1235.99,0.00015342,2]
[323040447,1713611458152,-500.0,0.00015342,2]
[323040448,1713611458163,-500.0,0.00015342,2]
[323040449,1713611458173,-500.0,0.00015342,2]
[323040450,1713611458185,-151.0,0.00015342,2]
[323040451,1713611458196,-739.09,0.00015342,2]
[323040452,1713611458206,-549.41,0.00015342,2]
[323040453,1713611458217,-500.0,0.00015342,2]
[323040454,1713611458227,-559.9,0.00015342,2]
[323040455,1713611458238,-1963.38,0.00015342,2]
[323040456,1713611458249,-1597.07,0.00015342,2]
[323040457,1713611458262,-500.0,0.00015342,2]
[323040458,1713611458273,-500.0,0.00015342,2]
[323040459,1713611458283,-500.0,0.00015342,2]
[323040460,1713611458294,-500.0,0.00015342,2]
[323040461,1713611458306,-500.0,0.00015342,2]
[323040462,1713611458316,-500.0,0.00015342,2]
[323040463,1713611458327,-1053.91,0.00015342,2]
[323040464,1713611458338,-1097.15,0.00015342,2]
[323040465,1713611458349,-542.94,0.00015342,2]
[323040466,1713611458359,-881.67,0.00015342,2]
[323040467,1713611458369,-500.0,0.00015342,2]
[323040468,1713611458380,-584.85512914,0.00015342,2]
[323040469,1713611458390,-500.0,0.00015342,2]
[323040470,1713611458401,-934.34,0.00015342,2]
[323040471,1713611458412,-151.0,0.00015342,2]
[323040472,1713611458422,-2407.92,0.00015342,2]
[323040473,1713611458433,-500.0,0.00015342,2]
[323040474,1713611458444,-700.95,0.00015342,2]
[323040475,1713611458455,-151.0,0.00015342,2]
[323040476,1713611458465,-500.0,0.00015342,2]
[323040477,1713611458476,-500.0,0.00015342,2]
[323040478,1713611458486,-8483.75,0.00015342,2]
[323040479,1713611458497,-500.0,0.00015342,2]
[323040480,1713611458507,-985.74,0.00015342,2]
[323040481,1713611458518,-953.62,0.00015342,2]
[323040482,1713611458529,-500.0,0.00015342,2]
[323040483,1713611458539,-500.0,0.00015342,2]
[323040484,1713611458550,-500.0,0.00015342,2]
[323040485,1713611458561,-1263.4,0.00015342,2]
[323040486,1713611458571,-2218.59,0.00015342,2]
[323040487,1713611458581,-2083.64,0.00015342,2]
[323040488,1713611458591,-1027.93,0.00015342,2]
[323040489,1713611458602,-500.0,0.00015342,2]
[323040490,1713611458612,-500.0,0.00015342,2]
[323040491,1713611458623,-500.0,0.00015342,2]
[323040492,1713611458633,-500.0,0.00015342,2]
[323040493,1713611458643,-500.0,0.00015342,2]
[323040494,1713611458656,-2217.34,0.00015342,2]
[323040495,1713611458667,-630.06,0.00015342,2]
[323040496,1713611458677,-978.35,0.00015342,2]
[323040497,1713611458688,-500.0,0.00015342,2]
[323040498,1713611458699,-674.54,0.00015342,2]
[323040499,1713611458709,-500.0,0.00015342,2]
[323040500,1713611458720,-531.65,0.00015342,2]
[323040501,1713611458730,-644.84,0.00015342,2]
[323040502,1713611458741,-840.59,0.00015342,2]
[323040503,1713611458753,-3097.56,0.00015342,2]
[323040504,1713611458765,-2519.39,0.00015342,2]
[323040505,1713611458775,-500.0,0.00015342,2]
[323040506,1713611458785,-901.54,0.00015342,2]
[323040507,1713611458795,-500.0,0.00015342,2]
[323040508,1713611458805,-155.508194,0.00015342,2]
[323040509,1713611458816,-500.0,0.00015342,2]
[323040510,1713611458826,-500.0,0.00015342,2]
[323040511,1713611458837,-725.09,0.00015342,2]
[323040512,1713611458848,-500.0,0.00015342,2]
[323040513,1713611458859,-2260.58,0.00015342,2]
[323040514,1713611458870,-500.0,0.00015342,2]
[323040515,1713611458880,-833.06,0.00015342,2]
[323040516,1713611458891,-1216.06,0.00015342,2]
[323040517,1713611458903,-500.0,0.00015342,2]
[323040518,1713611458913,-500.0,0.00015342,2]
[323040519,1713611458924,-905.84,0.00015342,2]
[323040520,1713611458940,-500.0,0.00015342,2]
[323040521,1713611458953,-500.0,0.00015342,2]
[323040522,1713611458964,-500.0,0.00015342,2]
[323040523,1713611458974,-500.0,0.00015342,2]
[323040524,1713611458986,-500.0,0.00015342,2]
[323040525,1713611458996,-2194.56,0.00015342,2]
[323040526,1713611459007,-500.0,0.00015342,2]
[323040527,1713611459019,-500.0,0.00015342,2]
[323040528,1713611459030,-866.3,0.00015342,2]
[323040529,1713611459041,-500.0,0.00015342,2]
[323040530,1713611459051,-151.0,0.00015342,2]
[323040531,1713611459061,-500.0,0.00015342,2]
[323040532,1713611459071,-500.0,0.00015342,2]
[323040533,1713611459082,-682.78,0.00015342,2]
[323040534,1713611459092,-2471.76,0.00015342,2]
[323040535,1713611459103,-1700.77,0.00015342,2]
[323040536,1713611459113,-500.0,0.00015342,2]
[323040537,1713611459123,-692.57,0.00015342,2]
[323040538,1713611459134,-500.0,0.00015342,2]
[323040539,1713611459144,-1191.14,0.00015342,2]
[323040540,1713611459154,-500.0,0.00015342,2]
[323040541,1713611459165,-1229.85,0.00015342,2]
[323040542,1713611459175,-500.0,0.00015342,2]
[323040543,1713611459186,-1416.98,0.00015342,2]
[323040544,1713611459196,-500.0,0.00015342,2]
[323040545,1713611459206,-500.0,0.00015342,2]
[323040546,1713611459216,-500.0,0.00015342,2]
[323040547,1713611459226,-1466.87,0.00015342,2]
[323040548,1713611459237,-1522.29,0.00015342,2]
[323040549,1713611459247,-500.0,0.00015342,2]
[323040550,1713611459259,-1426.61,0.00015342,2]
[323040551,1713611459270,-2462.06,0.00015342,2]
[323040552,1713611459280,-151.0,0.00015342,2]
[323040553,1713611459290,-500.0,0.00015342,2]
[323040554,1713611459301,-500.0,0.00015342,2]
[323040555,1713611459312,-500.0,0.00015342,2]
[323040556,1713611459322,-1140.07,0.00015342,2]
[323040557,1713611459333,-500.0,0.00015342,2]
[323040558,1713611459344,-4407.92,0.00015342,2]
[323040559,1713611459355,-151.0,0.00015342,2]
[323040560,1713611459366,-249.54295,0.00015342,2]
[323040561,1713611459376,-500.0,0.00015342,2]
[323040562,1713611459386,-634.03,0.00015342,2]
[323040563,1713611459396,-3555.5,0.00015342,2]
[323040564,1713611459406,-151.0,0.00015342,2]
[323040565,1713611459416,-500.0,0.00015342,2]
[323040566,1713611459427,-1921.97,0.00015342,2]
[323040567,1713611459437,-501.58,0.00015342,2]
[323040568,1713611459448,-500.0,0.00015342,2]
[323040569,1713611459458,-777.26,0.00015342,2]
[323040570,1713611459469,-249.54295,0.00015342,2]
[323040571,1713611459479,-5802.02,0.00015342,2]
[323040572,1713611459489,-500.0,0.00015342,2]
[323040573,1713611459500,-2886.77,0.00015342,2]
[323040574,1713611459510,-500.0,0.00015342,2]
[323040575,1713611459521,-500.0,0.00015342,2]
[323040576,1713611459531,-154.801869,0.00015342,2]
[323040577,1713611459542,-1061.12,0.00015342,2]
[323040578,1713611459552,-505.0,0.00015342,2]
[323040579,1713611459563,-151.0,0.00015342,2]
[323040580,1713611459573,-2253.72,0.00015342,2]
[323040581,1713611459583,-801.51,0.00015342,2]
[323040582,1713611459594,-500.0,0.00015342,2]
[323040583,1713611459604,-2939.41,0.00015342,2]
[323040584,1713611459615,-151.0,0.00015342,2]
[323040585,1713611459625,-500.0,0.00015342,2]
[323040586,1713611459636,-500.0,0.00015342,2]
[323040587,1713611459647,-1257.67,0.00015342,2]
[323040588,1713611459659,-2720.21,0.00015342,2]
[323040589,1713611459670,-716.94,0.00015342,2]
[323040590,1713611460212,-614.44,0.00015342,2]
[323040591,1713611460245,-500.0,0.00015342,2]
[323040592,1713611460263,-152.595039,0.00015342,2]
[323040593,1713611460274,-151.0,0.00015342,2]
[323040594,1713611460285,-500.0,0.00015342,2]
[323040595,1713611460296,-500.0,0.00015342,2]
[323040596,1713611460306,-2718.38,0.00015342,2]
[323040597,1713611460316,-500.0,0.00015342,2]
[323040598,1713611460326,-500.0,0.00015342,2]
[323040599,1713611460336,-1726.85,0.00015342,2]
[323040600,1713611460347,-1176.84,0.00015342,2]
[323040601,1713611460359,-578.82,0.00015342,2]
[323040602,1713611460370,-1240.6,0.00015342,2]
[323040603,1713611460379,-2118.74,0.00015342,2]
[323040604,1713611460390,-934.43,0.00015342,2]
[323040605,1713611460401,-567.94,0.00015342,2]
[323040606,1713611460410,-500.0,0.00015342,2]
[323040607,1713611460420,-911.0,0.00015342,2]
[323040608,1713611460431,-3969.77,0.00015342,2]
[323040609,1713611460441,-500.0,0.00015342,2]
[323040610,1713611460451,-500.0,0.00015342,2]
[323040611,1713611460461,-500.0,0.00015342,2]
[323040612,1713611460471,-647.49,0.00015342,2]
[323040613,1713611460481,-982.86,0.00015342,2]
[323040614,1713611460490,-151.0,0.00015342,2]
[323040615,1713611460500,-2826.98,0.00015342,2]
[323040616,1713611460510,-765.79,0.00015342,2]
[323040617,1713611460520,-1272.51,0.00015342,2]
[323040618,1713611460531,-151.0,0.00015342,2]
[323040619,1713611460540,-1271.09,0.00015342,2]
[323040620,1713611460550,-151.0,0.00015342,2]
[323040621,1713611460562,-2434.77,0.00015342,2]
[323040622,1713611460572,-500.0,0.00015342,2]
[323040623,1713611460582,-2514.95,0.00015342,2]
[323040624,1713611460592,-1092.533329,0.00015342,2]
[323040625,1713611460602,-500.0,0.00015342,2]
[323040626,1713611460613,-500.0,0.00015342,2]
[323040627,1713611460623,-1361.07,0.00015342,2]
[323040628,1713611460633,-790.46,0.00015342,2]
[323040629,1713611460644,-627.33,0.00015342,2]
[323040630,1713611460657,-1116.68,0.00015342,2]
[323040631,1713611460667,-1092.533329,0.00015342,2]
[323040632,1713611460677,-1011.26,0.00015342,2]
[323040633,1713611460686,-500.0,0.00015342,2]
[323040634,1713611460695,-815.46,0.00015342,2]
[323040635,1713611460704,-500.0,0.00015342,2]
[323040636,1713611460714,-727.05,0.00015342,2]
[323040637,1713611460723,-500.0,0.00015342,2]
[323040638,1713611460732,-1792.71,0.00015342,2]
[323040639,1713611460741,-500.0,0.00015342,2]
[323040640,1713611460751,-970.81,0.00015342,2]
[323040641,1713611460760,-500.0,0.00015342,2]
[323040642,1713611460771,-500.0,0.00015342,2]
[323040643,1713611460781,-500.0,0.00015342,2]
[323040644,1713611460791,-151.0,0.00015342,2]
[323040645,1713611460800,-151.0,0.00015342,2]
[323040646,1713611460810,-2683.78,0.00015342,2]
[323040647,1713611460820,-500.0,0.00015342,2]
[323040648,1713611460830,-500.0,0.00015342,2]
[323040649,1713611460840,-500.0,0.00015342,2]
[323040650,1713611460849,-946.09,0.00015342,2]
[323040651,1713611460859,-5979.68,0.00015342,2]
[323040652,1713611460869,-2237.02,0.00015342,2]
[323040653,1713611460879,-13980.56,0.00015342,2]
[323040654,1713611460889,-1403.86,0.00015342,2]
[323040655,1713611460900,-1278.7,0.00015342,2]
[323040656,1713611460910,-151.0,0.00015342,2]
[323040657,1713611460919,-500.0,0.00015342,2]
[323040658,1713611460929,-856.22,0.00015342,2]
[323040659,1713611460939,-500.0,0.00015342,2]
[323040660,1713611460948,-911.36,0.00015342,2]
[323040661,1713611460957,-943.55,0.00015342,2]
[323040662,1713611460967,-500.0,0.00015342,2]
[323040663,1713611460976,-500.0,0.00015342,2]
[323040664,1713611460985,-829.22,0.00015342,2]
[323040665,1713611460994,-500.0,0.00015342,2]
[323040666,1713611461003,-581.19,0.00015342,2]
[323040667,1713611461013,-500.0,0.00015342,2]
[323040668,1713611461022,-544.68,0.00015342,2]